Cogmind - Beta 17 @@@ ROGUE MODE // 2026.06.25 @ 03:39:31 Player: Artackni Result: Destroyed 0b10! Performance ------------- Evolutions (9) 4500 Regions Visited (22) 4400 Robots Destroyed (514) 2570 Value Destroyed (26062) 26062 Prototype IDs (73) 1460 Alien Tech Used (5) 1000 Bonus (52935) 52935 TOTAL SCORE: 92927 Bonus ------- Triggered High Security 1000 High Alert Combat Kills 9277 Follower Combat Kills 1741 Prayed to X0-1V1 5000 Major X0-1V1 Interference 21950 Met Warlord at Base 500 MAIN.C Attacked Warlord 500 Warlord Defense Kills 2708 Scanned by Researcher 500 Met Sigix 2000 Escaped with Sigix 5000 Win 3000 Friendly Fire -241 Cogmind --------- Core Integrity 1120/1750 Matter 290/300 Energy 99/100 System Corruption 0% Temperature Cool (-666) Movement Core (50) Location Tau Ceti IV Orbit Parts ------- > --- POWER (2) -------- (None) > --- PROPULSION (6) --- Biometal-ITA Exoskeleton > --- UTILITY (15) ----- Scrap Engine Experimental Optical Array Experimental Core Analyzer Experimental Core Analyzer > --- WEAPON (3) ------- (None) > --- INVENTORY (5) ---- Phase Gun Sigix Containment Pod Peak State ------------ > --- POWER ------------ Quantum-Singularity Reactor > --- PROPULSION ------- Biometal-ITA Exoskeleton > --- UTILITY ---------- Armored Scrap Engine Advanced Cooling System High-capacity Storage Unit Experimental Optical Array Advanced Sensor Array Experimental Signal Interpreter Experimental Targeting Computer Experimental Targeting Computer Experimental Core Analyzer Experimental Core Analyzer Advanced Transmission Jammer Advanced Focal Shield Experimental Thermal Shield X0-1V1's Piety Tracker > --- WEAPON ----------- Hvy. Accelerated HMG Construct/C > --- INVENTORY -------- Advanced Matter Compressor Advanced Matter Compressor Advanced Launcher Guidance Computer Improved Particle Accelerator Improved Kinecellerator Quantum Capacitor Experimental Weapon Cycler Experimental ECM Suite Experimental Reaction Control System Improved Focal Shield Transdimensional Reconstructor Subatomic Replicator Terrabomb Terrabomb Spacefold Activator Vortex Rail Railgun Sigix Containment Pod [Rating: 234] Favorites ----------- Power Constructs Engine Deuterium Engine Power Core Light Nuclear Core Reactor Constructs Propulsion Constructs Treads Light Treads Leg Constructs Wheel Armored Wheel Hover Unit Improved Gyrokinetic Inverter Flight Unit Experimental Q-thruster Utility X0-1V1's Piety Tracker Device X0-1V1's Piety Tracker Storage High-capacity Storage Unit Processor Experimental Core Analyzer Protection Heavy Insulated Plating Artifact Spacefold Activator Weapon Constructs Energy Gun Heavy Particle Gun Energy Cannon Heavy Particle Cannon Ballistic Gun Autogun Ballistic Cannon Constructs Launcher Advanced EMP Blaster Special Weapon Mining Laser Impact Weapon Makeshift Hammer Slashing Weapon Scimitar of Distortion Special Melee Weapon Chaos Jack Build | -11 -10 -10 -8 -7 -7 -7 -5 -5 -5 -5 -4 -4 -4 -4 -4 -3 -3 -3 -2 -2 -2 -1 ------- Run | Yrd Mat Sub Mat Fac Sto Rec Fac Upp Upp Zhi Pro Fac Upp Upp War Pro Res Qua Res Tes Sec Acc Slots Evolved 18 | . . . 4 2 . . 4 . . . . 2 . . . . 2 . 2 . . 2 Power . | . . . . . . . . . . . . . . . . . . . . . . . Propulsion 4 | . . . 2 1 . . . . . . . 1 . . . . . . . . . . Utility 13 | . . . 2 1 . . 4 . . . . 1 . . . . 1 . 2 . . 2 Weapon 1 | . . . . . . . . . . . . . . . . . 1 . . . . . Parts Attached 170 | 7 7 9 19 10 21 9 11 2 1 2 . 9 . . 6 1 17 2 11 8 6 12 Power 5 | 1 1 1 1 . 1 . . . . . . . . . . . . . . . . . Engine 4 | 1 . 1 1 . 1 . . . . . . . . . . . . . . . . . Core 1 | . 1 . . . . . . . . . . . . . . . . . . . . . Reactor . | . . . . . . . . . . . . . . . . . . . . . . . Propulsion 27 | 2 2 2 3 3 6 5 . . . . . . . . . 1 1 . 1 . 1 . Treads 3 | . . . . . . 3 . . . . . . . . . . . . . . . . Leg 6 | . . . 1 . 5 . . . . . . . . . . . . . . . . . Wheel 14 | 2 2 2 2 3 . 2 . . . . . . . . . 1 . . . . . . Hover 1 | . . . . . . . . . . . . . . . . . . . 1 . . . Flight 3 | . . . . . 1 . . . . . . . . . . . 1 . . . 1 . Utility 98 | 2 2 2 6 3 7 2 10 2 . 2 . 9 . . 6 . 16 2 8 8 4 7 Device 72 | 1 1 2 5 2 3 2 7 2 . 1 . 7 . . 6 . 12 2 5 8 1 5 Storage 8 | 1 1 . 1 . 1 . . . . 1 . . . . . . . . 1 . . 2 Processor 14 | . . . . 1 1 . 2 . . . . 2 . . . . 4 . 2 . 2 . Hackware . | . . . . . . . . . . . . . . . . . . . . . . . Protection 3 | . . . . . 2 . 1 . . . . . . . . . . . . . . . Artifact 1 | . . . . . . . . . . . . . . . . . . . . . 1 . Weapon 40 | 2 2 4 9 4 7 2 1 . 1 . . . . . . . . . 2 . 1 5 Energy Gun 16 | 1 . . 6 1 1 . . . 1 . . . . . . . . . 1 . 1 4 Energy Cannon 1 | . . . . . . 1 . . . . . . . . . . . . . . . . Ballistic Gun 14 | 1 2 3 1 2 4 . . . . . . . . . . . . . . . . 1 Ballistic Cannon 3 | . . . 1 . . 1 . . . . . . . . . . . . 1 . . . Launcher 1 | . . . 1 . . . . . . . . . . . . . . . . . . . Special Weapon 2 | . . 1 . . . . 1 . . . . . . . . . . . . . . . Impact Weapon 2 | . . . . . 2 . . . . . . . . . . . . . . . . . Slashing Weapon 1 | . . . . 1 . . . . . . . . . . . . . . . . . . Piercing Weapon . | . . . . . . . . . . . . . . . . . . . . . . . Special Melee Weapon . | . . . . . . . . . . . . . . . . . . . . . . . Unidentified Prototypes 45 | . . 1 7 3 3 3 1 . . 1 . 4 . . 4 . 5 3 2 3 3 2 Parts Lost 68 | . 1 6 6 . 8 8 . . . 1 . 1 . . . . 4 1 1 5 2 24 Power 7 | . . 2 1 . 1 1 . . . . . . . . . . . 1 . . . 1 Propulsion 13 | . . 2 . . 3 7 . . . . . . . . . . . . . . . 1 Utility 35 | . 1 1 2 . 3 . . . . 1 . 1 . . . . 4 . 1 4 2 15 Weapon 13 | . . 1 3 . 1 . . . . . . . . . . . . . . 1 . 7 Highest Loss Streak 14 | . 1 4 3 . 4 3 . . . 1 . 1 . . . . 2 1 1 3 1 14 To Critical Strikes 3 | . . . . . . . . . . . . . . . . . . . . 1 . 2 Average Backups 15 | 1 7 8 12 13 16 17 15 15 13 17 19 19 19 19 18 19 18 17 16 16 15 14 Power . | . 1 . . 1 . 1 2 2 . . 1 1 1 1 . . . . . . . . Propulsion 2 | . 3 1 1 2 2 2 2 2 2 3 5 4 3 3 3 2 2 2 2 2 1 . Utility 6 | . 1 3 3 1 2 4 4 5 5 6 6 7 7 7 8 13 12 11 10 10 10 8 Weapon 3 | . 1 3 6 6 8 6 3 3 3 3 3 2 5 5 4 2 2 1 2 2 1 1 Tool/Special . | . . . . . . . . . . . . . . . . . . . . . . . Unused Backups 67 | . 3 5 4 4 4 3 10 . 2 1 . 7 1 . 8 . 2 2 2 . 3 6 Power 4 | . . . . . . . 1 . 2 . . . . . 1 . . . . . . . Propulsion 11 | . 1 3 . . . . 1 . . . . 2 . . 1 . 1 . . . 2 . Utility 17 | . 1 . . . 3 . 4 . . 1 . 2 . . 1 . 1 1 1 . . 2 Weapon 33 | . 1 2 4 4 1 3 4 . . . . 2 1 . 5 . . 1 1 . 1 3 Tool/Special 2 | . . . . . . . . . . . . 1 . . . . . . . . . 1 Average Slot Usage (%) 68 | . 98 90 89 90 91 69 55 61 62 65 62 58 55 55 56 55 56 53 59 61 60 59 Engine 2 | . 6 4 6 7 6 2 . . . . . . . . 1 . . . . . . . Reactor 2 | . . . . . . 2 5 5 2 4 5 5 5 5 5 5 4 4 4 4 4 2 Treads 2 | . . . 3 . . 9 5 5 5 4 . . . . . . . . . . . . Leg 3 | . . 2 2 . 14 6 . . . . . 2 . . . . . . 2 3 1 3 Wheel 6 | . 28 21 23 28 14 5 . . . . . . . . . . 1 . . . . . Device 20 | . 12 11 20 19 18 15 28 33 33 32 33 27 25 25 25 25 23 17 20 19 16 22 Storage 6 | . 14 12 8 7 7 7 5 5 5 5 5 5 5 5 5 5 4 4 4 4 4 4 Processor 9 | . . . . 6 5 2 4 5 5 5 5 9 10 10 10 10 11 18 21 25 25 19 Energy Cannon 1 | . . 2 1 . . 2 . . . 3 4 2 5 5 4 . . . . . 1 . Ballistic Gun 5 | . 27 27 9 20 12 . . . . . . . . . . . . . . . . . Ballistic Cannon 2 | . . 2 3 . . . 5 5 5 5 1 2 . . 1 5 6 4 3 4 2 2 Impact Weapon 1 | . . . 1 . 5 7 . . . . . . . . . . . . . . . . Peak Build Rating 234 | 7 15 26 57 71 72 97 117 114 124 139 140 154 155 153 165 166 185 188 218 222 221 234 Average Rating 122 | 5 12 18 45 66 67 75 108 111 114 135 134 140 150 150 156 158 173 184 202 216 211 214 On Entrance 117 | . 7 15 26 57 66 70 90 112 112 124 138 135 154 150 150 162 158 177 177 218 195 212 Avg Prop Armor Cover (%) 13 | . . 7 8 2 7 21 . . . . . . . . . . 4 . . . . 36 Naked Turns . | . . . . . . . . . . . . . . . . . . . . . . . Heaviest Build 144 | 11 22 24 44 52 83 71 80 58 63 95 96 109 95 96 122 119 133 112 123 144 123 113 Greatest Support 347 | 26 26 24 52 72 89 102 54 54 103 214 214 223 223 223 223 184 184 184 291 291 347 176 Greatest Overweight (x) 4 | . 1 4 2 . 2 3 1 1 1 . . . . . . . . 1 . . . . Average Overweight (x) . | . . . . . . . . . . . . . . . . . . . . . . . Largest Inventory Capacity 20 | 8 10 10 15 15 20 20 20 15 15 20 20 20 20 20 20 20 20 20 20 20 20 20 Average Capacity 17 | 7 8 10 14 15 18 20 16 15 15 18 20 20 20 20 20 20 20 20 20 20 20 19 Most Carried 20 | 6 9 10 15 15 20 20 20 15 15 20 20 20 20 20 20 20 20 20 20 20 20 20 Average Carried 16 | 2 7 8 13 14 17 18 15 15 13 17 19 19 19 20 19 20 19 19 19 19 18 17 Final Capacity 20 | 8 10 10 15 15 20 20 15 15 15 20 20 20 20 20 20 20 20 20 20 20 20 5 Final Carried 20 | 6 9 10 15 15 20 17 15 15 14 19 20 20 20 20 20 20 19 19 20 20 18 3 Scrap Engine Consumption 146 | . . . . . . 21 17 . 3 . 2 5 . . 12 1 5 5 32 9 19 15 Constructs Created 9 | . . . . . . 5 . . . 1 . . . . . . 3 . . . . . Constructs Modified 165 | . . . . . . 41 7 . 5 9 3 5 2 . 14 2 17 12 15 6 19 8 Transmogrified Parts 23 | . . 5 10 3 5 . . . . . . . . . . . . . . . . . Integrity Recovered 386 | . . 165 169 20 32 . . . . . . . . . . . . . . . . . Class Distribution -------------------- 48% | Construct 15% | Mutant 12% | Gunner 6% | Gladiator 6% | Scavenger-Construct 5% | Commander-Construct Dominant Class ---------------- Mutant | -10/Materials Gunner | -10/Subcaves Gunner | -8/Materials Gunner | -7/Factory Gladiator | -7/Storage Construct | -7/Recycling Construct | -5/Factory Construct | -5/Upper Caves Construct | -5/Upper Caves Construct | -5/Zhirov Construct | -4/Proximity Caves Construct | -4/Factory Construct | -4/Upper Caves Construct | -4/Upper Caves Construct | -4/Warlord Construct | -3/Proximity Caves Construct | -3/Research Construct | -3/Quarantine Commander-Construct | -2/Research Construct | -2/Testing Construct | -2/Section 7 Scavenger-Construct | -1/Access Resources | -11 -10 -10 -8 -7 -7 -7 -5 -5 -5 -5 -4 -4 -4 -4 -4 -3 -3 -3 -2 -2 -2 -1 ----------- Run | Yrd Mat Sub Mat Fac Sto Rec Fac Upp Upp Zhi Pro Fac Upp Upp War Pro Res Qua Res Tes Sec Acc Matter Collected 15483 | 298 442 905 935 342 1265 415 1055 245 205 462 531 1508 95 160 1140 125 988 226 416 1058 964 1703 Remotely . | . . . . . . . . . . . . . . . . . . . . . . . Salvage Created 31012 | 207 539 545 905 768 1755 2233 1333 260 88 310 595 2504 159 506 1350 75 1657 724 1648 3468 3277 6106 Parts 1468 | 22 23 39 32 52 84 58 69 9 2 1 21 134 7 16 54 3 76 35 75 179 185 292 Haulers Intercepted 16 | . 2 . 1 1 4 . 1 . . . . 3 . . . . 1 1 . . 1 1 Recyclers Shooed 13 | 1 . . . 2 3 4 . . . . . 1 . . . . . . . . . 2 Parts Field Recycled . | . . . . . . . . . . . . . . . . . . . . . . . Retrieved Matter . | . . . . . . . . . . . . . . . . . . . . . . . Parts Self-Destructed 72 | . . 26 . . . . . 9 1 . 6 . 11 16 . 3 . . . . . . Prevented 13 | . . . . . . . . . . . 13 . . . . . . . . . . . Parts Restored . | . . . . . . . . . . . . . . . . . . . . . . . Kills | -11 -10 -10 -8 -7 -7 -7 -5 -5 -5 -5 -4 -4 -4 -4 -4 -3 -3 -3 -2 -2 -2 -1 ------- Run | Yrd Mat Sub Mat Fac Sto Rec Fac Upp Upp Zhi Pro Fac Upp Upp War Pro Res Qua Res Tes Sec Acc Combat Hostiles Destroyed 380 | . 9 15 12 9 31 11 17 4 1 . 12 30 2 7 20 2 22 10 14 39 39 74 Melee 19 | . . . . . 7 9 . . . . . . . . . . . . . . . 3 Guns 66 | . 9 11 10 9 21 1 . . . . . . . . . . . . . . . 5 Cannons 282 | . . 4 2 . . . 17 4 1 . 8 30 2 7 20 2 22 9 13 39 39 63 AOE 2 | . . . . . . . . . . . . . . . . . . 1 . . . 1 Classes Destroyed 28 | 2 5 2 4 1 1 . . . . . 3 2 1 . 5 . . . . 1 . 1 Worker 26 | 1 . . . 4 2 . 2 . . . . 5 . . . . . 2 1 3 . 6 Builder 13 | . . . 2 3 . . . . . . . 2 . . . . . . 1 3 1 1 Tunneler 13 | 8 . . 1 . 1 . . . . . . 1 . . . . . . 1 . . 1 Hauler 16 | . 2 . 1 1 4 . 1 . . . . 3 . . . . 1 1 . . 1 1 Recycler 36 | . 1 . 2 2 1 22 2 . . . . . . . . . 3 . 1 1 . 1 Mechanic 3 | . . . . . . . . . . . . 1 . . . . . . 1 . . 1 Operator 5 | . . . 1 . 1 . 1 . . . . . . . . . . . 1 1 . . Drone 6 | . . . . . . . . . . . 1 . . . . . . . . . . 5 Watcher 17 | . 1 . 1 . 1 . 1 . . . . 2 . . . . . 2 2 2 1 4 Swarmer 44 | . 3 3 . . 4 . 4 . . . 4 3 1 . . 2 1 4 . 4 11 . Saboteur 10 | . . . . . . . . . . . . . . . 2 . . . . . 2 6 Grunt 111 | . 6 2 4 3 11 . 5 . . . 3 12 . 5 8 . 11 1 4 12 5 19 Brawler 9 | . . . . . . . . . . . 1 . . 1 . . . . . . 1 6 Duelist 10 | . . . 1 . . . . . . . . . . . . . . . . 1 . 8 Protector 4 | . . . . . . . . . . . . . . . 1 . . 1 . 1 . 1 Researcher 9 | . . . . . . . . . . . . . . . . . . . . 2 7 . Sentry 50 | . . 1 5 . 7 10 3 1 1 . . 4 . 1 . . 2 2 6 . 4 3 Demolisher 3 | . . . . . . . . . . . . . . . 1 . . . 2 . . . Specialist 6 | . . . 2 1 . . . . . . . . . . . . . . . 2 . 1 Hunter 46 | . . . . 5 6 . 1 3 . . . 6 1 . . . 4 . . 7 2 11 Programmer 50 | . . . . . 3 . 4 . . . 2 4 . . 4 . 3 1 1 12 7 9 Heavy 4 | . . . . . . . . . . . . 1 . . . . 1 . . . . 2 Q-Series 1 | . . . . . . . . . . . . . . . . . . . . . . 1 Behemoth 2 | . . . . . . . . . . . 1 . . . 1 . . . . . . . Lightning 1 | . . . . . . . . . . . . . . . . . . 1 . . . . Investigator 2 | . . . . . . . . . . . . . . . . . . . . . 1 1 Striker 4 | . . . . . . . . . . . . . . . 1 . . . 1 . 1 1 Executioner 6 | . . . . . . . . . . . . . . . 1 . . . . . 4 1 Subdweller 10 | . . 9 . . . 1 . . . . . . . . . . . . . . . . Thug 1 | . . . . . . . . . . . . . . . 1 . . . . . . . Mutant 3 | . . . . . . . . . . . . . 1 . . . . . . . 2 . Best Kill Streak 35 | 3 3 3 6 10 4 5 6 2 1 . 10 11 2 7 8 1 7 4 7 12 11 35 Combat Bots Only 32 | . 3 3 4 3 4 1 5 2 1 . 10 7 2 7 8 1 4 4 4 7 11 32 Max Kills in Single Turn 4 | 1 1 1 2 2 1 1 1 1 1 . 1 4 1 1 1 1 1 1 3 1 1 2 Gunslinging . | . . . . . . . . . . . . . . . . . . . . . . . Exploded 1 | . . . . . . . . . . . . . . . . . . 1 . . . 1 Melee 1 | . . . . . 1 1 . . . . . . . . . . . . . . . 1 Uniques/NPCs Destroyed . | . . . . . . . . . . . . . . . . . . . . . . . Combat | -11 -10 -10 -8 -7 -7 -7 -5 -5 -5 -5 -4 -4 -4 -4 -4 -3 -3 -3 -2 -2 -2 -1 -------- Run | Yrd Mat Sub Mat Fac Sto Rec Fac Upp Upp Zhi Pro Fac Upp Upp War Pro Res Qua Res Tes Sec Acc Hostile Shots Fired 3985 | . 47 72 55 54 323 299 70 53 17 . 35 162 23 24 94 18 236 101 62 277 431 1532 Missed 1344 | . 19 21 14 18 113 107 28 9 7 . 17 77 9 9 32 10 88 32 24 109 168 433 Hits 2641 | . 28 51 41 36 210 192 42 44 10 . 18 85 14 15 62 8 148 69 38 168 263 1099 Melee 22 | . . . . . . . . . . . . . . . . . . . . . 2 20 Projectile 2619 | . 28 51 41 36 210 192 42 44 10 . 18 85 14 15 62 8 148 69 38 168 261 1079 AOE 118 | . . 4 . . . 2 . . . . . . . . . . . 2 2 . 1 107 Critical Strikes 66 | . . 1 2 1 2 . 2 1 . . 2 4 1 . 3 . 9 6 4 8 6 14 Actively Blocked 8 | . . . . . . . . . . . . . . . . . . . 4 4 . . Part Disruptions 1 | . . . . . . . . . . . . 1 . . . . . . . . . . Damage Taken 27413 | . 304 1001 646 529 1914 1593 568 631 211 366 228 911 108 125 836 87 1926 1901 859 2034 3716 6919 Core 2667 | . 88 186 59 48 237 218 36 67 24 61 15 79 . 8 86 . 168 126 74 87 370 630 Absorbed by Shields 6546 | . . . . . . 139 228 208 . . 92 957 112 130 859 94 1278 . 225 1010 249 965 Ignored by Resistances 20462 | . . . . . 20 . . . . . . . . 40 . . 286 440 80 713 2156 16727 Regen/Repaired (Parts) 11899 | . . . . . . 264 73 . 860 196 122 748 164 . 278 569 916 692 1732 636 2878 1771 Core Remaining (%) 78 | 100 . 80 91 . . 62 . . . . 82 . . . . 86 . 75 . . 66 64 Volleys Fired 1421 | 28 49 50 39 29 74 25 79 42 15 16 31 130 8 14 98 6 92 56 77 91 131 241 Largest 3 | 2 2 3 3 3 3 2 1 1 1 1 1 1 1 1 1 1 2 1 1 1 1 3 Hottest 299 | 60 46 135 172 83 83 227 127 70 70 70 97 97 59 59 299 299 202 61 91 132 196 218 Shots Fired 1905 | 56 98 132 97 87 223 28 79 42 15 16 31 126 8 14 97 6 109 55 77 89 130 290 Gun 694 | 56 98 104 64 87 223 8 . . . . . . . . . . . . . . . 54 Cannon 1208 | . . 25 33 . . 20 79 42 15 16 31 126 8 14 97 6 109 55 77 89 130 236 Launcher . | . . . . . . . . . . . . . . . . . . . . . . . Special 3 | . . 3 . . . . . . . . . . . . . . . . . . . . Kinetic 1686 | 28 98 117 67 87 223 24 79 42 15 16 14 126 5 . 55 . 108 55 72 89 109 257 Thermal 171 | 28 . 15 30 . . 4 . . . . . . 3 14 16 6 1 . 5 . 21 28 Explosive . | . . . . . . . . . . . . . . . . . . . . . . . Electromagnetic 22 | . . . . . . . . . . . 17 . . . . . . . . . . 5 Entropic 26 | . . . . . . . . . . . . . . . 26 . . . . . . . Robot Hit Streak 18 | 12 9 15 15 9 14 7 7 7 7 5 6 7 3 7 7 3 7 7 7 11 18 14 Robot Miss Streak 9 | 3 5 6 5 3 6 3 2 5 2 1 6 6 1 2 9 1 7 4 3 2 4 6 Penetration Max 3 | . . . . 2 . . 1 . . . . 1 . . . . 2 . 3 . . 1 Secondary Targets 9 | . 2 1 . 2 4 . . . . . . . . . . . . . . . . . Max Gunslinging Chain 1 | . 1 1 . 1 1 . . . . . . . . . . . . . . . . . Capacitor 5 | . . . . . . . . . . . . . . . . . . . . . . 5 Shots Hit Robots 1301 | 30 57 81 64 48 187 86 46 24 9 8 16 66 6 11 54 4 57 32 53 66 89 207 Core Hits 638 | 14 22 26 32 30 104 32 24 7 2 3 7 39 2 7 21 1 28 18 28 34 42 115 Critical Kills 10 | . . . . . . . 1 . . . . 3 . 1 1 . 2 . 1 . . 1 Critical Parts Destroyed 20 | . 1 . . . 5 1 1 3 . . 1 3 1 1 2 . . . . . . 1 Critical Strikes 40 | . 1 . 2 . 6 2 3 3 . 1 1 6 1 2 3 . 4 . 3 . . 2 Burn 1 | . . . 1 . . . . . . . . . . . . . . . . . . . Meltdown 1 | . . . . . . . . . . . . . . . . . . . 1 . . . Destroy 26 | . 1 . . . 2 . 2 3 . 1 1 6 1 2 3 . 2 . . . . 2 Blast 6 | . . . 1 . . . 1 . . . . . . . . . 2 . 2 . . . Smash 6 | . . . . . 4 2 . . . . . . . . . . . . . . . . Melee Attacks 137 | . . . 2 . 42 92 . . . . . . . . . . . . . . . 1 Impact 50 | . . . 2 . 15 33 . . . . . . . . . . . . . . . . Slashing 86 | . . . . . 27 59 . . . . . . . . . . . . . . . . Piercing 1 | . . . . . . . . . . . . . . . . . . . . . . 1 Sneak Attacks 23 | . . . . . 6 17 . . . . . . . . . . . . . . . . Combat Hostiles . | . . . . . . . . . . . . . . . . . . . . . . . Follow-up Attacks 22 | . . . . . 9 13 . . . . . . . . . . . . . . . . Damage Inflicted 92578 | 316 873 1378 1324 1018 4406 4321 3037 949 578 739 1699 8505 709 1188 5290 339 5452 2860 5369 11293 12212 18723 Guns 8171 | 316 873 1067 819 1018 3030 190 . . . . . . . . . . . . . . . 858 Cannons 77896 | . . 311 467 . . 850 3037 949 578 739 1699 8043 709 1188 5290 339 5431 2693 5273 11293 11841 17166 Explosions 1777 | . . . . . 28 64 . . . . . 435 . . . . . 167 96 . 303 684 Melee 4592 | . . . 38 . 1337 3217 . . . . . . . . . . . . . . . . Ramming 142 | . . . . . 11 . . . . . . 27 . . . . 21 . . . 68 15 Kinetic 76624 | 96 873 1178 926 1018 3030 950 3037 949 578 739 439 8043 349 . 3188 . 5334 2693 5105 11293 10386 16420 Thermal 7788 | 220 . 200 360 . . 90 . . . . . 435 360 1188 1100 339 97 167 192 . 1455 1585 Explosive 806 | . . . . . 28 64 . . . . . . . . . . . . . . 303 411 Electromagnetic 1624 | . . . . . . . . . . . 1260 . . . . . . . 72 . . 292 Impact 1161 | . . . 38 . 378 745 . . . . . . . . . . . . . . . . Slashing 3431 | . . . . . 959 2472 . . . . . . . . . . . . . . . . Piercing . | . . . . . . . . . . . . . . . . . . . . . . . Entropic 1002 | . . . . . . . . . . . . . . . 1002 . . . . . . . Highest Corruption 62 | . . 17 . . 10 48 2 2 . . . 4 4 . 24 62 4 14 . 19 18 . Average Corruption 15 | . . 17 . . 9 38 1 2 . . . 3 4 . 4 42 1 6 . 19 14 . Corruption Purged . | . . . . . . . . . . . . . . . . . . . . . . . Corruption Blocked . | . . . . . . . . . . . . . . . . . . . . . . . Effects 216 | . . 1 . . 20 62 7 1 . . . 15 2 . 10 24 5 17 . 31 21 . Message Errors 51 | . . . . . 7 21 3 1 . . . 3 . . . 2 1 2 . 6 5 . Matter Fused 50 | . . 1 . . 3 12 2 . . . . 2 . . . 9 2 5 . 13 1 . Heat Flow Errors 18 | . . . . . 1 6 1 . . . . 3 . . 3 . . 1 . 1 2 . Energy Discharges 22 | . . . . . 5 5 . . . . . . . . 2 3 . 2 . 2 3 . Parts Rejected 7 | . . . . . 1 2 . . . . . . . . . 1 1 1 . . 1 . Parts Fused 4 | . . . . . . . . . . . . . . . . . . 1 . 1 2 . Data Loss (minor) 22 | . . . . . 2 9 . . . . . 1 2 . 1 2 . 3 . 2 . . Data Loss (major) 11 | . . . . . . 3 . . . . . 2 . . . 3 . . . 2 1 . Alerts 8 | . . . . . . 2 1 . . . . . . . 2 1 1 1 . . . . Misdirections 14 | . . . . . 1 2 . . . . . . . . 1 3 . . . 2 5 . Weapon Failures 9 | . . . . . . . . . . . . 4 . . 1 . . 1 . 2 1 . Overload Shots . | . . . . . . . . . . . . . . . . . . . . . . . Overflow Damage 11993 | . . 15 37 . 339 620 405 . . 87 265 1061 56 174 633 58 658 341 312 2505 2377 2050 Projectiles 10872 | . . 15 . . . 144 405 . . 87 265 1045 56 174 633 58 658 341 312 2505 2255 1919 Explosions 269 | . . . . . . 7 . . . . . 9 . . . . . . . . 122 131 Melee 852 | . . . 37 . 339 469 . . . . . 7 . . . . . . . . . . Knockbacks 220 | . . . 4 . 2 4 23 1 . . . 22 2 . 13 . 22 17 5 16 20 69 Impact 3 | . . . . . 2 1 . . . . . . . . . . . . . . . . Kinetic 194 | . . . 3 . . 3 20 1 . . . 19 2 . 12 . 21 15 5 15 18 60 Secondary 23 | . . . 1 . . . 3 . . . . 3 . . 1 . 1 2 . 1 2 9 Self-Inflicted Damage 300 | . . . . . 27 82 . . . . . . . . . . . 85 . . 106 . Shots 6 | . . . . . 1 3 . . . . . . . . . . . 1 . . 1 . Rammed . | . . . . . . . . . . . . . . . . . . . . . . . Targets Rammed 8 | . . . . . 1 . . . . . . 1 . . . . 1 . . . 2 3 Kicked 8 | . . . . . 1 . . . . . . 1 . . . . 1 . . . 2 3 Crushed . | . . . . . . . . . . . . . . . . . . . . . . . Highest Temperature 488 | 60 30 12 137 45 155 396 314 48 45 38 123 148 46 50 305 488 312 65 113 413 400 302 Average Temperature 73 | 22 8 12 45 16 31 135 100 22 23 23 36 38 26 25 110 214 90 27 19 85 106 74 Received Heat Transfer 3064 | . 117 198 297 72 429 486 78 24 45 . 18 89 . 37 39 . 364 72 111 69 393 126 Effects 13 | . . . . . . 2 . . . . . . . . 2 1 1 . . 5 2 . Shutdowns 3 | . . . . . . . . . . . . . . . . 1 . . . 1 1 . Energy Bleed 4 | . . . . . . . . . . . . . . . 2 . 1 . . 1 . . Interference 5 | . . . . . . 1 . . . . . . . . . . . . . 3 1 . Short Circuit 1 | . . . . . . 1 . . . . . . . . . . . . . . . . Siege Activations . | . . . . . . . . . . . . . . . . . . . . . . . Martial Activations 1 | . . . . . . . . . . . . . . . . . 1 . . . . . Total Turns 5 | . . . . . . . . . . . . . . . . . 5 . . . . . Longest Duration 5 | . . . . . . . . . . . . . . . . . 5 . . . . . Shielding Activations . | . . . . . . . . . . . . . . . . . . . . . . . Robots Disrupted . | . . . . . . . . . . . . . . . . . . . . . . . Combat Hostiles . | . . . . . . . . . . . . . . . . . . . . . . . Robots Corrupted 12 | . . . . . 4 1 . . . . 4 1 . . . . . . . 1 . 1 Combat Hostiles 9 | . . . . . 3 1 . . . . 4 . . . . . . . . . . 1 Parts Fried 21 | . . . . . 3 3 . . . . 9 4 . . . . . . . 1 . 1 Impact Corruptions 20 | . . . 3 . 8 4 . . . . . 2 . . 1 . 1 . . 1 . . Robots Melted 1 | . . . . . . . . . . . . . . . . . . . 1 . . . Combat Hostiles 1 | . . . . . . . . . . . . . . . . . . . 1 . . . Parts Melted 19 | . . 1 6 . . . . . . . . . 1 3 2 . . . 3 2 . 1 Heat Transferred 4228 | 500 . 296 814 . . . . . . . . 300 150 550 350 148 37 50 130 . 274 629 Parts Sabotaged 6 | . . . . . . . . . . . . . . . . . . . . . . 6 Parts Stolen . | . . . . . . . . . . . . . . . . . . . . . . . Parts Stripped 9 | . . . . . 4 5 . . . . . . . . . . . . . . . . Power Chain Reactions 2 | . . . . . . . . . . . . . . . . . . 1 1 . . . Alert | -11 -10 -10 -8 -7 -7 -7 -5 -5 -5 -5 -4 -4 -4 -4 -4 -3 -3 -3 -2 -2 -2 -1 ------- Run | Yrd Mat Sub Mat Fac Sto Rec Fac Upp Upp Zhi Pro Fac Upp Upp War Pro Res Qua Res Tes Sec Acc Maximum Alert Level 5 | . . . . . 2 2 2 . . . . 4 . . . . 3 2 3 4 5 5 Low Security (%) 33 | 100 100 . 100 100 13 39 76 . . . . . . . . . 34 . . . . . Level 1 23 | . . . . . 40 56 20 . . . . 39 . . . . 13 16 39 . . . Level 2 19 | . . . . . 46 3 2 . . . . 22 . . . . 44 83 35 50 . . Level 3 7 | . . . . . . . . . . . . 24 . . . . 7 . 24 30 19 . Level 4 8 | . . . . . . . . . . . . 13 . . . . . . . 19 51 39 Level 5 1 | . . . . . . . . . . . . . . . . . . . . . . 20 High Security 5 | . . . . . . . . . . . . . . . . . . . . . 28 40 Max Security . | . . . . . . . . . . . . . . . . . . . . . . . Sterilizations 1 | . . . . . . . . . . . . . . . . . . . . 1 . . Peak Influence 3368 | 10 62 . 190 148 601 435 481 . . . . 1362 . . . . 721 598 879 1313 2085 3368 Initial 1250 | . . . 66 70 43 225 128 . . . . 288 . . . . . 388 311 478 723 1250 Average 530 | 2 18 . 150 89 365 248 110 . . . . 619 . . . . 368 459 560 763 1383 1838 Influence Increases 15731 | 45 291 207 490 288 1125 904 915 100 35 5 265 1744 65 150 445 40 1051 470 1084 1433 1700 2879 Destroy 0b10 Robot/C 8240 | . 180 200 280 180 700 220 400 80 20 . 220 600 40 140 380 40 580 180 300 820 940 1740 Destroy 0b10 Robot/NC 695 | 45 20 . 40 50 50 110 40 . . 5 5 70 . . 5 . 25 30 40 60 15 85 Destroy Leader 1390 | . 36 . 84 22 210 . 84 20 . . 40 110 10 10 . . 124 36 84 134 124 262 Allied During Kill 447 | . . 7 4 . 22 4 21 . . . . 2 . . . . 39 . 39 75 . 234 Successful Hack 108 | . 10 . 26 16 . 11 24 . . . . 6 . . . . . . . . 15 . Disable Machine 585 | . . . . 15 45 15 45 . . . . 90 . . . . . 75 30 30 135 105 Anti-Garrison Action 400 | . . . . . . . . . . . . 200 . . . . . . 200 . . . Destroy Structure 1245 | . . . 11 5 38 29 166 . . . . 156 . . . . 118 44 183 51 141 303 Advance Influence 150 | . . . . . . . . . . . . 150 . . . . . . . . . . Partial Spotted 150 | . . . . . . 15 15 . . . . 45 . . . . 30 . . . 45 . Lose Combat Pursuer 1485 | . 45 . 45 . 60 . 120 . 15 . . 315 15 . 60 . 135 105 . 135 285 150 Miscellaneous 836 | . . . . . . 500 . . . . . . . . . . . . 208 128 . . Influence Decreases 12438 | 45 291 78 465 346 643 1176 740 279 179 163 45 602 545 209 987 321 360 607 787 997 902 1671 Entered New Map 5305 | . . . 63 84 53 353 178 179 59 158 . 82 505 169 823 281 . 303 243 373 564 835 Time Decay 5923 | 45 281 78 342 262 510 693 482 100 120 5 45 380 40 40 164 40 320 294 534 474 318 356 Search Patrol Dispatched 100 | . . . . . . . . . . . . 100 . . . . . . . . . . Lost Part 610 | . 10 . 60 . 80 80 . . . . . 10 . . . . 40 10 10 50 20 240 Lost Ally 500 | . . . . . . 50 80 . . . . 30 . . . . . . . 100 . 240 Squads Dispatched 131 | . 1 . 2 6 8 1 14 . . . . 14 . . . . 9 4 4 15 18 35 Investigation 13 | . 1 . 1 . 1 1 2 . . . . 3 . . . . . . 1 3 . . Extermination 21 | . . . . 1 3 . 2 . . . . 3 . . . . 2 1 1 4 2 2 Reinforcement 44 | . . . 1 5 4 . 9 . . . . 4 . . . . 6 2 2 3 6 2 Assault 42 | . . . . . . . . . . . . 1 . . . . 1 1 . 2 10 27 Garrison 11 | . . . . . . . 1 . . . . 3 . . . . . . . 3 . 4 Intercept . | . . . . . . . . . . . . . . . . . . . . . . . Searches Triggered 1 | . . . . . . . . . . . . 1 . . . . . . . . . . Construction Impeded 5 | . . . . . 1 . 1 . . . . . . . . . 2 . . 1 . . Haulers Reinforced 9 | . . . . 2 2 . . . . . . 1 . . . . 1 1 2 . . . Active Scanning Responses . | . . . . . . . . . . . . . . . . . . . . . . . Cargo Convoy Interrupts . | . . . . . . . . . . . . . . . . . . . . . . . Stealth | -11 -10 -10 -8 -7 -7 -7 -5 -5 -5 -5 -4 -4 -4 -4 -4 -3 -3 -3 -2 -2 -2 -1 --------- Run | Yrd Mat Sub Mat Fac Sto Rec Fac Upp Upp Zhi Pro Fac Upp Upp War Pro Res Qua Res Tes Sec Acc Distress Signals 35 | . 1 . 2 1 4 4 2 . . . . 1 . . 1 . 3 . 5 4 2 5 Communications Jammed 260 | . . . . . . . 30 . . . 2 21 . . 48 . . 32 8 . 72 47 Distress Signals 248 | . . . . . . . 28 . . . . 19 . . 48 . . 32 8 . 72 41 Times Spotted 810 | . 19 21 19 18 54 13 46 5 2 . 12 67 4 8 78 2 37 32 28 59 96 190 Peak Tracking Total 29 | . 5 5 4 3 8 2 11 2 1 . 4 8 2 3 17 2 6 11 4 11 25 29 Tactical Retreats 60 | . 2 . 2 2 4 . 5 . 1 . . 11 1 . 3 . 5 5 . 2 9 8 ECM-based Alert Blocks 16 | . . . . 2 12 . . . . . . . . . . . . . . 2 . . Traps | -11 -10 -10 -8 -7 -7 -7 -5 -5 -5 -5 -4 -4 -4 -4 -4 -3 -3 -3 -2 -2 -2 -1 ------- Run | Yrd Mat Sub Mat Fac Sto Rec Fac Upp Upp Zhi Pro Fac Upp Upp War Pro Res Qua Res Tes Sec Acc Traps Triggered 9 | . 3 . . . . . . . . . . 2 . . . . 1 . . 1 1 1 Indirectly . | . . . . . . . . . . . . . . . . . . . . . . . Trap Hack Attempts . | . . . . . . . . . . . . . . . . . . . . . . . Triggered . | . . . . . . . . . . . . . . . . . . . . . . . Disarmed . | . . . . . . . . . . . . . . . . . . . . . . . Reprogrammed . | . . . . . . . . . . . . . . . . . . . . . . . Reused . | . . . . . . . . . . . . . . . . . . . . . . . Traps Extracted . | . . . . . . . . . . . . . . . . . . . . . . . Installed . | . . . . . . . . . . . . . . . . . . . . . . . Triggered . | . . . . . . . . . . . . . . . . . . . . . . . Machines | -11 -10 -10 -8 -7 -7 -7 -5 -5 -5 -5 -4 -4 -4 -4 -4 -3 -3 -3 -2 -2 -2 -1 ---------- Run | Yrd Mat Sub Mat Fac Sto Rec Fac Upp Upp Zhi Pro Fac Upp Upp War Pro Res Qua Res Tes Sec Acc Machines Disabled 48 | . . . . 1 3 1 3 . . 4 . 6 . . 3 . . 5 2 2 11 7 Max in Single Turn 1 | . . . . 1 1 1 1 . . 1 . 1 . . 1 . . 1 1 1 1 1 Garrison Access 5 | . . . 1 . . . 1 . . . . 1 . . . . . . 1 1 . . Energy Cycler 1 | . . . . . . . . . . . . . . . . . . . . . . 1 Machines Repaired . | . . . . . . . . . . . . . . . . . . . . . . . Machines Dismantled . | . . . . . . . . . . . . . . . . . . . . . . . Machines Sabotaged . | . . . . . . . . . . . . . . . . . . . . . . . Overloaded Fab Kills . | . . . . . . . . . . . . . . . . . . . . . . . Hacking | -11 -10 -10 -8 -7 -7 -7 -5 -5 -5 -5 -4 -4 -4 -4 -4 -3 -3 -3 -2 -2 -2 -1 --------- Run | Yrd Mat Sub Mat Fac Sto Rec Fac Upp Upp Zhi Pro Fac Upp Upp War Pro Res Qua Res Tes Sec Acc Machines Accessed 43 | . 6 . 8 1 2 3 5 . 1 4 . 3 . . 1 . 1 2 1 1 4 . Terminals 32 | . 6 . 7 1 2 1 4 . 1 . . 2 . . . . 1 2 . 1 4 . Fabricators . | . . . . . . . . . . . . . . . . . . . . . . . Repair Stations . | . . . . . . . . . . . . . . . . . . . . . . . Recycling Units 1 | . . . . . . 1 . . . . . . . . . . . . . . . . Scanalyzers . | . . . . . . . . . . . . . . . . . . . . . . . Garrison Access 4 | . . . 1 . . . 1 . . . . 1 . . . . . . 1 . . . Total Hacks 87 | . 10 . 19 2 2 7 11 . 1 17 . 6 . . 1 . 1 3 2 1 4 . Successful 60 | . 7 . 10 1 2 5 6 . 1 17 . 2 . . 1 . 1 2 1 . 4 . Failed 27 | . 3 . 9 1 . 2 5 . . . . 4 . . . . . 1 1 1 . . Catastrophic 6 | . . . 1 1 . . 2 . . . . 1 . . . . . . . 1 . . Database Lockouts . | . . . . . . . . . . . . . . . . . . . . . . . Manual 50 | . 11 . 15 . 1 5 10 . . . . 6 . . . . . . 2 . . . Terminals 57 | . 10 . 17 2 2 2 10 . 1 . . 4 . . . . 1 3 . 1 4 . Fabricators . | . . . . . . . . . . . . . . . . . . . . . . . Repair Stations . | . . . . . . . . . . . . . . . . . . . . . . . Recycling Units 3 | . . . . . . 3 . . . . . . . . . . . . . . . . Scanalyzers . | . . . . . . . . . . . . . . . . . . . . . . . Garrison Access 7 | . . . 2 . . . 1 . . . . 2 . . . . . . 2 . . . Terminal Hacks 35 | . . . 2 1 2 2 2 . 1 17 . . . . 1 . 1 2 . . 4 . Record 7 | . . . . . . . . . 1 5 . . . . . . . 1 . . . . Part Schematic 4 | . . . . . . . . . . 4 . . . . . . . . . . . . Robot Analysis 5 | . . . 1 . . . . . . 4 . . . . . . . . . . . . Prototype ID Bank 4 | . . . . . . . . . . 4 . . . . . . . . . . . . Open Door 6 | . . . . . 1 . . . . . . . . . 1 . . . . . 4 . Branch Access Points 2 | . . . 1 1 . . . . . . . . . . . . . . . . . . Alert Level 4 | . . . . . 1 . 1 . . . . . . . . . 1 1 . . . . Registered Components 1 | . . . . . . . 1 . . . . . . . . . . . . . . . Release Object 2 | . . . . . . 2 . . . . . . . . . . . . . . . . Fabricator Hacks . | . . . . . . . . . . . . . . . . . . . . . . . Repair Station Hacks . | . . . . . . . . . . . . . . . . . . . . . . . Recycling Unit Hacks . | . . . . . . . . . . . . . . . . . . . . . . . Scanalyzer . | . . . . . . . . . . . . . . . . . . . . . . . Garrison Access Hacks 2 | . . . 1 . . . 1 . . . . . . . . . . . . . . . Seal Access 2 | . . . 1 . . . 1 . . . . . . . . . . . . . . . Unauthorized Hacks 23 | . 7 . 7 . . 3 3 . . . . 2 . . . . . . 1 . . . Terminals 19 | . 7 . 7 . . 1 3 . . . . 1 . . . . . . . . . . Assimilate 1 | . . . . . . . . . . . . 1 . . . . . . . . . . Botnet 1 | . . . . . . . 1 . . . . . . . . . . . . . . . Operators 3 | . 1 . 1 . . . 1 . . . . . . . . . . . . . . . Skim 14 | . 6 . 6 . . 1 1 . . . . . . . . . . . . . . . Fabricators . | . . . . . . . . . . . . . . . . . . . . . . . Repair Stations . | . . . . . . . . . . . . . . . . . . . . . . . Recycling Units 2 | . . . . . . 2 . . . . . . . . . . . . . . . . Reject 1 | . . . . . . 1 . . . . . . . . . . . . . . . . Mask 1 | . . . . . . 1 . . . . . . . . . . . . . . . . Scanalyzers . | . . . . . . . . . . . . . . . . . . . . . . . Garrison Access 2 | . . . . . . . . . . . . 1 . . . . . . 1 . . . Jam 2 | . . . . . . . . . . . . 1 . . . . . . 1 . . . Data Cores Recovered 2 | . . . 1 . 1 . . . . . . . . . . . . . . . . . Used . | . . . . . . . . . . . . . . . . . . . . . . . Hacking Detections 19 | . 3 . 5 . 1 2 1 . . . . 1 . . . . 1 1 1 1 2 . Full Trace Events 3 | . . . 1 . . . 2 . . . . . . . . . . . . . . . Feedback Events . | . . . . . . . . . . . . . . . . . . . . . . . Feedback Blocked . | . . . . . . . . . . . . . . . . . . . . . . . Robot Schematics Acquired 7 | . . . . . . . . . . . . . . . . . . . . 2 5 . Robots Built . | . . . . . . . . . . . . . . . . . . . . . . . Authchips . | . . . . . . . . . . . . . . . . . . . . . . . Time . | . . . . . . . . . . . . . . . . . . . . . . . Total Robot Build Rating . | . . . . . . . . . . . . . . . . . . . . . . . Part Schematics Acquired 19 | . . . . . . . . . . 4 . . . . . . . . . 6 9 . Parts Built . | . . . . . . . . . . . . . . . . . . . . . . . Authchips . | . . . . . . . . . . . . . . . . . . . . . . . Time . | . . . . . . . . . . . . . . . . . . . . . . . Total Part Build Rating . | . . . . . . . . . . . . . . . . . . . . . . . Part Studies Acquired . | . . . . . . . . . . . . . . . . . . . . . . . Parts Repaired . | . . . . . . . . . . . . . . . . . . . . . . . Time . | . . . . . . . . . . . . . . . . . . . . . . . Parts Recycled . | . . . . . . . . . . . . . . . . . . . . . . . Recycled Matter . | . . . . . . . . . . . . . . . . . . . . . . . Retrieved Matter . | . . . . . . . . . . . . . . . . . . . . . . . Retrieved Components . | . . . . . . . . . . . . . . . . . . . . . . . Parts Scanalyzed . | . . . . . . . . . . . . . . . . . . . . . . . Part Schematics Acquired . | . . . . . . . . . . . . . . . . . . . . . . . Parts Damaged . | . . . . . . . . . . . . . . . . . . . . . . . Bothacking | -11 -10 -10 -8 -7 -7 -7 -5 -5 -5 -5 -4 -4 -4 -4 -4 -3 -3 -3 -2 -2 -2 -1 ------------ Run | Yrd Mat Sub Mat Fac Sto Rec Fac Upp Upp Zhi Pro Fac Upp Upp War Pro Res Qua Res Tes Sec Acc Used RIF Installer . | . . . . . . . . . . . . . . . . . . . . . . . Robots Hacked . | . . . . . . . . . . . . . . . . . . . . . . . Non-combat . | . . . . . . . . . . . . . . . . . . . . . . . Combat . | . . . . . . . . . . . . . . . . . . . . . . . Robot Hacks Applied . | . . . . . . . . . . . . . . . . . . . . . . . Relay Couplers Released 5 | . . . . . . . . . . . . . . . . . . . 3 2 . . Machine Destruction 5 | . . . . . . . . . . . . . . . . . . . 3 2 . . Fabnet Peak Effective % . | . . . . . . . . . . . . . . . . . . . . . . . Robots Rewired 4 | . . . . . . 4 . . . . . . . . . . . . . . . . Allies Hacked . | . . . . . . . . . . . . . . . . . . . . . . . Hacks Repelled . | . . . . . . . . . . . . . . . . . . . . . . . Allies | -11 -10 -10 -8 -7 -7 -7 -5 -5 -5 -5 -4 -4 -4 -4 -4 -3 -3 -3 -2 -2 -2 -1 -------- Run | Yrd Mat Sub Mat Fac Sto Rec Fac Upp Upp Zhi Pro Fac Upp Upp War Pro Res Qua Res Tes Sec Acc Total Allies 32 | . . 1 . . 1 4 4 . . . . 2 . . . . 1 . 5 1 . 13 Largest Group 10 | . . 1 1 . 1 3 4 . . . . 1 . . . . 1 . 5 4 . 10 Highest-Rated Group 650 | . . 137 137 . 125 115 236 . . . . 79 . . . . 183 . 290 232 . 650 Highest-Rated Ally 183 | . . 137 137 . 125 40 59 . . . . 79 . . . . 183 . 58 69 . 183 Total Orders . | . . . . . . . . . . . . . . . . . . . . . . . Ally Attacks 161 | . . 5 6 . 14 5 16 . . . . 1 . . . . 16 . 11 16 . 71 Total Damage 7148 | . . 318 490 . 760 79 485 . . . . 56 . . . . 1001 . 335 453 . 3171 Kills 40 | . . 4 2 . 4 1 4 . . . . . . . . . 8 . 1 2 . 14 Allies Corrupted . | . . . . . . . . . . . . . . . . . . . . . . . Allies Melted 1 | . . . . . . . . . . . . . . . . . . . 1 . . . X0-1V1 Amusement Gains 376 | . 15 8 21 6 26 34 40 . . 40 . 10 . . 20 . 5 . . 10 94 47 Good Acts 153 | . . 22 6 5 7 10 9 4 2 . . 16 5 1 3 1 11 8 3 7 4 29 Bad Acts 150 | . . 10 3 6 9 19 9 . 1 . 1 18 4 1 9 4 2 3 11 18 15 7 Intel | -11 -10 -10 -8 -7 -7 -7 -5 -5 -5 -5 -4 -4 -4 -4 -4 -3 -3 -3 -2 -2 -2 -1 ------- Run | Yrd Mat Sub Mat Fac Sto Rec Fac Upp Upp Zhi Pro Fac Upp Upp War Pro Res Qua Res Tes Sec Acc Active Infowar (turns) 13076 | 53 888 562 . 336 231 . 1381 218 250 404 175 894 91 80 527 397 886 647 1506 1200 998 1352 Optics 4668 | . . . . . . . . . . . . . . . . . . . 1149 1169 998 1352 Sensors 8437 | . . . . . . . 1280 218 250 401 149 510 91 73 147 342 886 647 1506 1110 . 827 Terrain 317 | . . . . . . . 317 . . . . . . . . . . . . . . . Seismic 1503 | 53 888 562 . . . . . . . . . . . . . . . . . . . . Jamming 5836 | . . . . 105 . . 868 218 250 404 175 894 91 80 517 55 127 450 48 . 650 904 ECM 481 | . . . . 231 231 . . . . . . . . . . . . . . 19 . . Robot Analysis Total 5 | . . . 1 . . . . . . 4 . . . . . . . . . . . . Derelict Logs Recovered 2 | . . 2 . . . . . . . . . . . . . . . . . . . . Drone Launches . | . . . . . . . . . . . . . . . . . . . . . . . Drone Recoveries . | . . . . . . . . . . . . . . . . . . . . . . . Exploration | -11 -10 -10 -8 -7 -7 -7 -5 -5 -5 -5 -4 -4 -4 -4 -4 -3 -3 -3 -2 -2 -2 -1 ------------- Run | Yrd Mat Sub Mat Fac Sto Rec Fac Upp Upp Zhi Pro Fac Upp Upp War Pro Res Qua Res Tes Sec Acc Turns Passed 19272 | 269 1006 1246 772 562 1389 2841 1444 218 250 404 175 894 91 80 644 397 887 647 1506 1200 998 1352 Spaces Moved 16426 | 129 684 1027 591 468 858 1579 1366 233 305 379 294 1562 252 176 767 468 709 480 1275 1011 1128 685 Core 103 | 5 . 6 . . . . . . . . . . . . . . . . . . . 92 Treads 2882 | . . . . . . 599 1366 233 305 328 . . . . . . 51 . . . . . Legs 4292 | . . . . . 358 473 . . . 18 . 802 . . . . 109 . 748 778 413 593 Wheels 3893 | 124 684 1021 591 468 500 505 . . . . . . . . . . . . . . . . Hover 1625 | . . . . . . . . . . . . . . . . . 481 480 527 . 137 . Flight 3631 | . . . . . . 2 . . . 33 294 760 252 176 767 468 68 . . 233 578 . Fastest Speed 30 | 50 85 90 93 90 85 61 61 61 61 36 36 30 30 30 30 30 56 56 98 52 33 50 Average Speed 80 | 88 90 94 98 93 106 115 81 62 64 64 36 35 30 30 30 78 72 98 100 87 53 127 Slowest Speed 250 | 90 105 250 120 100 190 240 168 168 168 69 36 36 30 30 30 114 228 114 105 98 133 200 Overloaded Moves . | . . . . . . . . . . . . . . . . . . . . . . . Propulsion Burnouts . | . . . . . . . . . . . . . . . . . . . . . . . Robots Hopped 7 | . . . . . . . . . . . . 4 . . . . . . . 2 1 . Potential Cave-ins 9 | . . . . . . . . . . . . . . . . . . . . . . 9 Cave-ins Triggered 1 | . . . . . . . . . . . . . . . . . . . . . . 1 Teleports 1 | . . . . . . . . . . . . . . . . . . 1 . . . . Exploration Rate (%) 55 | 5 89 46 60 15 92 96 33 51 55 78 58 46 43 38 89 64 16 65 49 82 73 25 Regions Visited 22 Branch Regions 14 Pre-discovered Areas 5 | . . 1 1 . . . . . . 3 . . . . . . . . . . . . Known Exits Taken 20 | . 1 1 1 1 1 . 1 1 1 1 1 1 1 1 1 1 1 1 1 1 1 . Unknown Exits Taken 2 | 1 . . . . . 1 . . . . . . . . . . . . . . . . Scrap Searched 14 | . . 3 . . . . . 1 3 . 1 . 2 1 . 3 . . . . . . Spaces Dug 58 | . . . . . 1 1 15 . 1 . . 13 . . 1 . 9 1 . 4 5 7 Terrain Destroyed 620 | . . . 4 2 16 34 85 42 26 . 16 84 3 3 19 2 59 23 63 17 57 65 Melee 2 | . . . . . 1 1 . . . . . . . . . . . . . . . . Projectile 544 | . . . 4 2 12 10 85 42 26 . 16 77 3 3 19 2 59 17 60 17 25 65 AOE 74 | . . . . . 3 23 . . . . . 7 . . . . . 6 3 . 32 . Terrain Rammed . | . . . . . . . . . . . . . . . . . . . . . . . Walls Destroyed . | . . . . . . . . . . . . . . . . . . . . . . . Machines Disabled . | . . . . . . . . . . . . . . . . . . . . . . . Actions | -11 -10 -10 -8 -7 -7 -7 -5 -5 -5 -5 -4 -4 -4 -4 -4 -3 -3 -3 -2 -2 -2 -1 --------- Run | Yrd Mat Sub Mat Fac Sto Rec Fac Upp Upp Zhi Pro Fac Upp Upp War Pro Res Qua Res Tes Sec Acc Total 21094 | 230 999 1210 703 543 1188 2510 1652 278 347 525 342 1833 262 191 1113 492 995 611 1427 1243 1410 990 Wait 2482 | 61 242 109 21 5 170 749 140 . 23 115 13 110 . . 207 14 149 56 43 117 122 16 Move 16389 | 128 683 1026 590 468 857 1578 1365 232 304 378 293 1553 251 175 766 467 708 479 1274 1006 1125 683 Hop 7 | . . . . . . . . . . . . 4 . . . . . . . 2 1 . Pick Up 144 | 6 7 10 13 10 18 3 20 . 2 7 1 8 1 . 10 . 2 4 7 3 4 8 Fast Attach 131 | 7 3 1 13 8 7 9 7 1 . 1 . 6 . . 8 2 15 5 10 8 9 11 Attach 65 | . 1 5 6 2 12 3 6 . 1 2 . 2 . . . . 4 . 2 4 5 10 Detach 80 | . . . 8 6 6 15 6 . . 2 1 5 1 . 1 . 9 . 3 4 6 7 Swap 59 | . 5 4 2 2 10 2 4 2 . 2 3 2 . 2 5 2 4 2 3 2 1 . Drop 157 | . 9 5 9 13 6 12 21 1 2 2 . 12 1 . 18 1 11 9 8 6 4 7 Fire 1421 | 28 49 50 39 29 74 25 79 42 15 16 31 130 8 14 98 6 92 56 77 91 131 241 Melee 98 | . . . 2 . 27 68 . . . . . . . . . . . . . . . 1 Ram 1 | . . . . . . . 1 . . . . . . . . . . . . . . . Kick 8 | . . . . . 1 . . . . . . 1 . . . . 1 . . . 2 3 Crush . | . . . . . . . . . . . . . . . . . . . . . . . Escape Stasis 3 | . . . . . . . . . . . . . . . . . . . . . . 3 Rewire 46 | . . . . . . 46 . . . . . . . . . . . . . . . . Trap . | . . . . . . . . . . . . . . . . . . . . . . . Miscellaneous 3 | . . . . . . . 3 . . . . . . . . . . . . . . . Route ------- -11/Scrapyard -10/Materials (discovered 5 exits: *Mat x3 / *Min / *Sub) -10/Subcaves (discovered 3 exits: *Mat x2 / Rec) -8/Materials (discovered 3 exits: *Fac x3) -7/Factory (discovered 4 exits: *Fac / *Sto / Low x2) -7/Storage (discovered 2 exits: *Fac / *Rec) -7/Recycling -5/Factory (discovered 4 exits: *Fac x2 / *Upp x2) -5/Upper Caves -5/Upper Caves -5/Zhirov -4/Proximity Caves -4/Factory (discovered 2 exits: Res / *Upp) -4/Upper Caves -4/Upper Caves (discovered 2 exits: *Res / *War) -4/Warlord -3/Proximity Caves -3/Research (discovered 2 exits: *Res / *Qua) -3/Quarantine -2/Research (discovered 3 exits: *Acc x2 / *Tes) -2/Testing (discovered 3 exits: *Acc / *Sec / [*Frg]) -2/Section 7 -1/Access (discovered 2 exits: [*Sur] / Com) Tau Ceti IV Orbit History --------- Turn | Location | Event 10 | -11/Scrapyard | Discovered new exit (range 15) 270 | -11/Scrapyard | Entered Materials 312 | -10/Materials | Build established: Mutant 632 | -10/Materials | Discovered new exit (range 15) 678 | -10/Materials | Discovered new exit (range 16) 854 | -10/Materials | Discovered new exit (range 5) 1015 | -10/Materials | Identified exit to Mines 1015 | -10/Materials | Identified exit to Materials 1015 | -10/Materials | Identified exit to Subcaves 1092 | -10/Materials | Loaded intel: 7 terminal locations 1160 | -10/Materials | Learned 4 Materials zone layouts 1220 | -10/Materials | Learned location of 1 exit from Storage 1267 | -10/Materials | Prayed at D.C.S.S. Altar Unit 1276 | -10/Materials | Entered Subcaves 1282 | -10/Subcaves | Energy generation permanently improved by X0-1V1 (+10) 1368 | -10/Subcaves | Identified exit to Materials 1368 | -10/Subcaves | X0-1V1 revealed exit location to -8/Materials 1427 | -10/Subcaves | Lost 4 parts (1p2n1w) 1461 | -10/Subcaves | Shifting Twisted Machinery released Sub. Laser 1465 | -10/Subcaves | Learned location of Zion (-6) 1662 | -10/Subcaves | Learned Materials emergency access door positions 1716 | -10/Subcaves | Weapon slot count permanently improved by X0-1V1 (+1) 1800 | -10/Subcaves | Core integrity fell below 50% 1808 | -10/Subcaves | Core integrity permanently improved by X0-1V1 (+250) 1970 | -10/Subcaves | Visited 4L-MR0's lab 1998 | -10/Subcaves | Found Prototype Device 1998 | -10/Subcaves | Identified Sfc. Transmogrifier 2002 | -10/Subcaves | Found Prototype Energy Cannon 2021 | -10/Subcaves | Build established: Gunner 2235 | -10/Subcaves | X0-1V1 sent hostile S-10 Pest (x3) 2333 | -10/Subcaves | X0-1V1 revealed exit location to -8/Materials 2345 | -10/Subcaves | Core integrity restored by X0-1V1 (+108) 2355 | -10/Subcaves | X0-1V1 activates XOMVISION 2357 | -10/Subcaves | System corruption reached 10% 2390 | -10/Subcaves | Identified exit to Recycling 2390 | -10/Subcaves | X0-1V1 revealed exit location to -7/Recycling 2405 | -10/Subcaves | X0-1V1 sent hostile G-34 Mercenary (x5) 2410 | -10/Subcaves | X0-1V1 sent allied B-75 Beast (x1) 2444 | -10/Subcaves | Shifting Twisted Machinery released Battle Cannon 2522 | -10/Subcaves | Entered Materials 2522 | -8/Materials | Accompanied by 1 ally 2522 | -8/Materials | Evolved 4 slots: Propulsion x2, Utility x2 2523 | -8/Materials | Identified exit to Factory 2659 | -8/Materials | X0-1V1 foreshadows a heat wave 2736 | -8/Materials | Lost 3 parts (1u2w) 2780 | -8/Materials | Ambient heat levels rising (+10) 2780 | -8/Materials | X0-1V1 revealed exit location to -7/Factory 2849 | -8/Materials | Lost 3 parts (1p1u1w) 2986 | -8/Materials | Ambient heat levels rising (+10) 3104 | -8/Materials | Learned 4 Factory zone layouts 3108 | -8/Materials | Ambient heat levels falling (-10) 3130 | -8/Materials | Learned Factory emergency access door positions 3146 | -8/Materials | Learned Factory trap positions 3152 | -8/Materials | X0-1V1 vaporized surrounding terrain (radius 24) 3153 | -8/Materials | Learned location of 2 exits from Lower Caves 3154 | -8/Materials | Learned location of Lower Caves (-6) 3163 | -8/Materials | Learned location of 2 exits from Lower Caves 3217 | -8/Materials | Learned Storage trap positions 3280 | -8/Materials | X0-1V1 announced a LAN party 3282 | -8/Materials | Ambient heat levels falling (-10) 3294 | -8/Materials | Entered Factory 3294 | -7/Factory | Evolved 2 slots: Propulsion x1, Utility x1 3296 | -7/Factory | Loaded intel: 91 trap records 3298 | -7/Factory | X0-1V1 enhanced Transport squad support 3356 | -7/Factory | X0-1V1 sent you to a vault 3401 | -7/Factory | Found Prototype Device 3401 | -7/Factory | Identified Skeleton Box 3407 | -7/Factory | Found Prototype Slashing Weapon 3407 | -7/Factory | Identified Scimitar of Distortion 3450 | -7/Factory | X0-1V1 redirected Transport squads to designated parking area 3506 | -7/Factory | Discovered new exit (range 8) 3550 | -7/Factory | Identified exit to Storage 3550 | -7/Factory | Identified exit to Lower Caves 3852 | -7/Factory | X0-1V1 upgraded hostiles (x2) 3856 | -7/Factory | Entered Storage 3858 | -7/Storage | Identified exit to Factory 3859 | -7/Storage | Loaded intel: 14 trap records 3933 | -7/Storage | X0-1V1 enhanced Transport squad support 3943 | -7/Storage | X0-1V1 sent allied B-86 Titan (x1) 4073 | -7/Storage | X0-1V1 sent you into danger 4216 | -7/Storage | Remotely autohacked Sealed Heavy Doors 4463 | -7/Storage | System corruption reached 10% 4575 | -7/Storage | Build established: Tank 4662 | -7/Storage | Lost 4 parts (1n2u1w) 4961 | -7/Storage | Build established: Gladiator 5019 | -7/Storage | Remotely autohacked Sealed Heavy Doors 5088 | -7/Storage | X0-1V1 activates XOMVISION 5240 | -7/Storage | Used back door to open Recycling access 5245 | -7/Storage | Entered Recycling 5344 | -7/Recycling | X0-1V1 added 0b10 threat records associated with you (major) 5427 | -7/Recycling | Discovered new exit (range 15) 5794 | -7/Recycling | System corruption reached 30% 5802 | -7/Recycling | X0-1V1 mutated your Utility slot to Propulsion slot 5899 | -7/Recycling | Lost 3 parts (1p2n) 6181 | -7/Recycling | Build established: Scavenger-Gladiator 6184 | -7/Recycling | Entered Scraplab 6188 | -7/Recycling | Found Prototype Device 6188 | -7/Recycling | Identified Scrap Engine 6286 | -7/Recycling | Lost 3 allies 6577 | -7/Recycling | X0-1V1 activates XOMVISION 6592 | -7/Recycling | Build established: Mutant 6853 | -7/Recycling | Core integrity restored by X0-1V1 (+187) 6943 | -7/Recycling | Build established: Construct 6980 | -7/Recycling | X0-1V1 sent you into danger 7470 | -7/Recycling | X0-1V1 added 0b10 threat records associated with you (major) 8086 | -7/Recycling | Entered Factory 8086 | -5/Factory | Evolved 4 slots: Utility x4 8433 | -5/Factory | X0-1V1 sent you to a vault 8684 | -5/Factory | Discovered new exit (range 12) 8691 | -5/Factory | Identified exit to Upper Caves 8739 | -5/Factory | Discovered exit to Upper Caves (range 6) 8930 | -5/Factory | X0-1V1 mutated your Propulsion slot to Utility slot 9063 | -5/Factory | X0-1V1 enhanced Transport squad support 9105 | -5/Factory | Sensors blinded by X0-1V1 9207 | -5/Factory | Identified exit to Factory 9207 | -5/Factory | X0-1V1 revealed exit location to -4/Factory 9338 | -5/Factory | X0-1V1 announced a LAN party 9421 | -5/Factory | X0-1V1 sent allied Scrapper (x4) 9438 | -5/Factory | Garrison activated, responded to threat 9521 | -5/Factory | X0-1V1 revealed exit location to -4/Factory 9530 | -5/Factory | Entered Upper Caves 9554 | -5/Upper Caves | Attracted the attention of an 0b10 checkpoint 9597 | -5/Upper Caves | Identified exit to Upper Caves 9597 | -5/Upper Caves | X0-1V1 revealed exit location to -5/Upper Caves 9715 | -5/Upper Caves | Entered a destroyed Warlord outpost 9725 | -5/Upper Caves | Encountered a Warlord checkpoint 9748 | -5/Upper Caves | Entered another Upper Caves area 9750 | -5/Upper Caves | Attracted the attention of an 0b10 checkpoint 9793 | -5/Upper Caves | Spotted B-75 Beast 9983 | -5/Upper Caves | Sensors blinded by X0-1V1 9990 | -5/Upper Caves | Discovered new exit (range 6) 9998 | -5/Upper Caves | Identified exit to Zhirov 9998 | -5/Upper Caves | Entered Zhirov 10104 | -5/Zhirov | Discovered new exit (range 3) 10138 | -5/Zhirov | Found Alien Artifact 10147 | -5/Zhirov | Found Alien Artifact 10147 | -5/Zhirov | Identified Integrated Reactor 10147 | -5/Zhirov | Installed Integrated Reactor, increased core energy generation (+10) 10196 | -5/Zhirov | Learned location of Quarantine (-3) 10196 | -5/Zhirov | Learned location of Testing (-2) 10196 | -5/Zhirov | Learned location of Command (-1) 10246 | -5/Zhirov | Identified exit to Proximity Caves 10353 | -5/Zhirov | Cloak Generator disabled 10364 | -5/Zhirov | Enhanced Grunts warped into view 10402 | -5/Zhirov | Entered Proximity Caves 10407 | -4/Proximity Caves | Spotter reported a threat 10414 | -4/Proximity Caves | Lost 8 allies 10474 | -4/Proximity Caves | Spotted B-86 Titan 10483 | -4/Proximity Caves | Destroyed B-86 Titan 10575 | -4/Proximity Caves | Discovered exit to Factory (range 5) 10577 | -4/Proximity Caves | Entered Factory 10577 | -4/Factory | Evolved 2 slots: Propulsion x1, Utility x1 10580 | -4/Factory | Destroyed 10 combat bots 10587 | -4/Factory | Identified exit to Research 10587 | -4/Factory | X0-1V1 revealed exit location to -3/Research 10711 | -4/Factory | X0-1V1 sent you to a vault 10714 | -4/Factory | Found Prototype Processor 10714 | -4/Factory | Identified Exp. Signal Interpreter 10721 | -4/Factory | Found Prototype Device 10721 | -4/Factory | Identified Exp. Thermal Shield 10725 | -4/Factory | Found Prototype Device 10725 | -4/Factory | Identified Imp. Particle Accelerator 10728 | -4/Factory | X0-1V1 mutated your Propulsion slot to Power slot 10729 | -4/Factory | X0-1V1 announced a LAN party 10827 | -4/Factory | Search patrols dispatched 10897 | -4/Factory | Garrison activated, responded to threat 10921 | -4/Factory | Found Quantum Capacitor 10963 | -4/Factory | X0-1V1 mutated your Weapon slot to Propulsion slot 10997 | -4/Factory | Spotted B-86 Titan 11078 | -4/Factory | Discovered new exit (range 18) 11090 | -4/Factory | Identified exit to Upper Caves 11150 | -4/Factory | Destroyed 7 combat bots 11181 | -4/Factory | Spotted B-86 Titan 11194 | -4/Factory | X0-1V1 activates XOMVISION 11210 | -4/Factory | X0-1V1 enhanced Transport squad support 11214 | -4/Factory | X0-1V1 mutated your Utility slot to Propulsion slot 11317 | -4/Factory | X0-1V1 upgraded hostiles (x2) 11327 | -4/Factory | First assault squad dispatched 11390 | -4/Factory | X0-1V1 sent allied Knight (x1) 11471 | -4/Factory | Entered Upper Caves 11497 | -4/Upper Caves | Encountered a Warlord checkpoint 11553 | -4/Upper Caves | X0-1V1 sent you into danger 11554 | -4/Upper Caves | X0-1V1 activates XOMVISION 11559 | -4/Upper Caves | Discovered new exit (range 6) 11562 | -4/Upper Caves | Identified exit to Upper Caves 11562 | -4/Upper Caves | Entered another Upper Caves area 11571 | -4/Upper Caves | Discovered exit to Research (range 11) 11585 | -4/Upper Caves | Attracted the attention of an 0b10 checkpoint 11612 | -4/Upper Caves | Destroyed 7 combat bots 11636 | -4/Upper Caves | X0-1V1 sent you into danger 11640 | -4/Upper Caves | Discovered new exit (range 9) 11642 | -4/Upper Caves | Identified exit to Warlord 11642 | -4/Upper Caves | Entered Warlord 11678 | -4/Warlord | Found Prototype Device 11678 | -4/Warlord | Identified Exp. Phase Shifter 11700 | -4/Warlord | Met Warlord 11725 | -4/Warlord | Warlord's base attacked by MAIN.C 11778 | -4/Warlord | Found Prototype Energy Gun 11779 | -4/Warlord | Found Prototype Energy Gun 11787 | -4/Warlord | X0-1V1 sent hostile Thug (x2) 11934 | -4/Warlord | Identified exit to Proximity Caves 11934 | -4/Warlord | X0-1V1 revealed exit location to -3/Proximity Caves 12075 | -4/Warlord | Warlord forces counterattacked 12143 | -4/Warlord | Spotted Striker 12147 | -4/Warlord | Destroyed Striker 12163 | -4/Warlord | Spotted B-86 Titan 12163 | -4/Warlord | Spotted B-90 Cyclops 12179 | -4/Warlord | Destroyed 8 combat bots 12184 | -4/Warlord | Destroyed B-90 Cyclops 12225 | -4/Warlord | Spotted Executioner 12228 | -4/Warlord | System corruption reached 10% 12232 | -4/Warlord | Spotted Striker 12236 | -4/Warlord | X0-1V1 sent you into danger 12272 | -4/Warlord | Destroyed Executioner 12278 | -4/Warlord | Found Prototype Processor 12281 | -4/Warlord | Found Exp. Targeting Computer 12286 | -4/Warlord | Entered Proximity Caves 12305 | -3/Proximity Caves | Lost 21 allies 12354 | -3/Proximity Caves | System corruption reached 30% 12675 | -3/Proximity Caves | Discovered exit to Research (range 8) 12683 | -3/Proximity Caves | Entered Research 12683 | -3/Research | Evolved 2 slots: Utility x1, Weapon x1 12877 | -3/Research | X0-1V1 upgraded hostiles (x2) 12985 | -3/Research | X0-1V1 sent allied H-81 Overseer (x1) 13153 | -3/Research | Discovered new exit (range 12) 13153 | -3/Research | Spotted B-90 Cyclops 13274 | -3/Research | X0-1V1 sent you to a vault 13278 | -3/Research | Found Prototype Device 13278 | -3/Research | Identified Exp. Actuator Array 13285 | -3/Research | Found Prototype Processor 13285 | -3/Research | Identified Exp. Core Analyzer (x2) 13293 | -3/Research | Found Prototype Device 13293 | -3/Research | Identified Exp. Weapon Cycler 13297 | -3/Research | Found Exp. Core Analyzer 13433 | -3/Research | First assault squad dispatched 13450 | -3/Research | Discovered new exit (range 6) 13569 | -3/Research | Identified exit to Quarantine 13570 | -3/Research | Entered Quarantine 13596 | -3/Quarantine | X0-1V1 activates XOMVISION 13658 | -3/Quarantine | X0-1V1 announced a LAN party 13724 | -3/Quarantine | Found Exp. Signal Interpreter 13784 | -3/Quarantine | Found Alien Artifact 13820 | -3/Quarantine | First assault squad dispatched 13918 | -3/Quarantine | Found Alien Artifact 13929 | -3/Quarantine | Met incapacitated Sigix Warrior 13929 | -3/Quarantine | Lockdown squad dispatched 13939 | -3/Quarantine | Found Sigix Containment Pod 13951 | -3/Quarantine | X0-1V1 activates XOMVISION 13981 | -3/Quarantine | Spotted Lightning 13988 | -3/Quarantine | Spotted Lightning 13992 | -3/Quarantine | Spotted Lightning 14014 | -3/Quarantine | Identified exit to Research 14014 | -3/Quarantine | X0-1V1 revealed exit location to -2/Research 14050 | -3/Quarantine | System corruption reached 10% 14067 | -3/Quarantine | Destroyed Lightning 14123 | -3/Quarantine | Identified Transdimensional Reconstructor 14123 | -3/Quarantine | Warped through subspace 14191 | -3/Quarantine | X0-1V1 vaporized surrounding terrain (radius 19) 14217 | -3/Quarantine | Entered Research 14217 | -2/Research | Warlord forces began assault on 0b10 14217 | -2/Research | Evolved 2 slots: Utility x2 14327 | -2/Research | Research machine network offline 14341 | -2/Research | X0-1V1 announced a LAN party 14519 | -2/Research | Identified Vortex Rail 14602 | -2/Research | X0-1V1 mutated your Propulsion slot to Utility slot 14686 | -2/Research | Borebot progress halted 14696 | -2/Research | Borebot progress halted 14800 | -2/Research | Spotted Striker 14819 | -2/Research | Destroyed Striker 14845 | -2/Research | Spotted B-90 Cyclops 14910 | -2/Research | Discovered new exit (range 20) 14919 | -2/Research | X0-1V1 sent you to a vault 15015 | -2/Research | Spotted Striker 15106 | -2/Research | Borebot progress halted 15107 | -2/Research | Found Exp. Targeting Computer 15191 | -2/Research | Found Prototype Device 15191 | -2/Research | Identified Exp. Thermal Defense Suite 15216 | -2/Research | Build established: Commander-Construct 15247 | -2/Research | P-80 Master assimilated allied Enforcer 9c 15350 | -2/Research | Met DD-05H 15424 | -2/Research | X0-1V1 added 0b10 threat records associated with you (considerable) 15457 | -2/Research | X0-1V1 activates XOMVISION 15471 | -2/Research | X0-1V1 redirected Transport squads to designated parking area 15574 | -2/Research | Discovered new exit (range 13) 15584 | -2/Research | Identified exit to Access 15686 | -2/Research | Discovered new exit (range 9) 15692 | -2/Research | Identified exit to Testing 15719 | -2/Research | Given Cave Seal Controls access code 15723 | -2/Research | Entered Testing 15723 | -2/Testing | Accompanied by 4 allies 15787 | -2/Testing | Garrison activated, responded to threat 15940 | -2/Testing | Lost 4 allies 16024 | -2/Testing | X0-1V1 enhanced Transport squad support 16131 | -2/Testing | Found Prototype Device 16131 | -2/Testing | Identified Exp. ECM Suite 16162 | -2/Testing | System corruption reached 10% 16214 | -2/Testing | Build established: Construct 16381 | -2/Testing | X0-1V1 added 0b10 threat records associated with you (minor) 16584 | -2/Testing | Discovered exit to Access (range 11) 16666 | -2/Testing | Destroyed 7 combat bots 16683 | -2/Testing | Found Prototype Device 16683 | -2/Testing | Identified Exp. Shield Generator 16740 | -2/Testing | X0-1V1 sent you into danger 16777 | -2/Testing | X0-1V1 made a cryptic comment about sterilization and BL-4Z3 16783 | -2/Testing | X0-1V1 turns hostiles against one another 16793 | -2/Testing | Identified exit to Section 7 16793 | -2/Testing | X0-1V1 revealed exit location to -2/Section 7 16813 | -2/Testing | Lost 3 parts (2u1w) 16818 | -2/Testing | X0-1V1 sent hostile G-67 Veteran (x4) 16847 | -2/Testing | X0-1V1 mutated your Utility slot to Propulsion slot 16855 | -2/Testing | Sterilization system engaged 16855 | -2/Testing | Non-combat units ordered to evacuate 16879 | -2/Testing | Spotted Fortress 16921 | -2/Testing | Discovered new exit (range 6) 16923 | -2/Testing | Entered Section 7 16957 | -2/Section 7 | X0-1V1 mutated your Propulsion slot to Utility slot 16991 | -2/Section 7 | X0-1V1 sent hostile Mutant (x2) 17037 | -2/Section 7 | X0-1V1 redirected Transport squads to designated parking area 17050 | -2/Section 7 | Destroyed 11 combat bots 17078 | -2/Section 7 | X0-1V1 sent hostile S-43 Plague (x3) 17186 | -2/Section 7 | Found Alien Artifact 17186 | -2/Section 7 | Identified Integrated Dissipator 17186 | -2/Section 7 | Installed Integrated Dissipator, increased core heat dissipation (+20) 17234 | -2/Section 7 | Found Alien Artifact 17234 | -2/Section 7 | Identified Spacefold Activator 17351 | -2/Section 7 | X0-1V1 activates XOMVISION 17423 | -2/Section 7 | First assault squad dispatched 17445 | -2/Section 7 | Spotted Executioner 17458 | -2/Section 7 | Spotted Executioner 17467 | -2/Section 7 | Scanned by Researcher 17470 | -2/Section 7 | Destroyed Executioner 17472 | -2/Section 7 | Destroyed Executioner 17502 | -2/Section 7 | Found Alien Artifact 17507 | -2/Section 7 | Found Transdimensional Reconstructor 17524 | -2/Section 7 | Spotted Striker 17536 | -2/Section 7 | Spotted Executioner 17538 | -2/Section 7 | Spotted Executioner 17545 | -2/Section 7 | Destroyed Executioner 17547 | -2/Section 7 | Destroyed Executioner 17584 | -2/Section 7 | Spotted Striker 17621 | -2/Section 7 | Destroyed Striker 17636 | -2/Section 7 | High security lockdown imminent 17647 | -2/Section 7 | X0-1V1 enhanced Transport squad support 17691 | -2/Section 7 | Spotted B-99 Colossus 17697 | -2/Section 7 | Destroyed 9 combat bots 17716 | -2/Section 7 | High security lockdown engaged 17765 | -2/Section 7 | Spotted Alpha 7 17856 | -2/Section 7 | Spotted Investigator 17861 | -2/Section 7 | Destroyed Investigator 17887 | -2/Section 7 | Discovered exit to Access (range 22) 17902 | -2/Section 7 | Build established: Scavenger-Construct 17921 | -2/Section 7 | Entered Access 17921 | -1/Access | Evolved 2 slots: Utility x2 18117 | -1/Access | Garrison activated, responded to threat 18171 | -1/Access | First assault squad dispatched 18422 | -1/Access | X0-1V1 enhanced Transport squad support 18444 | -1/Access | Garrison activated, responded to threat 18563 | -1/Access | Identified exit to Command 18563 | -1/Access | X0-1V1 revealed exit location to -1/Command 18593 | -1/Access | X0-1V1 activates XOMVISION 18606 | -1/Access | Spotted B-99 Colossus 18610 | -1/Access | Spotted B-99 Colossus 18721 | -1/Access | High security lockdown imminent 18780 | -1/Access | Destroyed 13 combat bots 18801 | -1/Access | High security lockdown engaged 18803 | -1/Access | Lost 6 parts (5u1w) 18953 | -1/Access | Spotted Executioner 18989 | -1/Access | X0-1V1 downgraded hostiles (x4) 19000 | -1/Access | Destroyed Executioner 19062 | -1/Access | Spotted Investigator 19091 | -1/Access | Build established: Mutant 19097 | -1/Access | Spotted Striker 19104 | -1/Access | Destroyed Investigator 19119 | -1/Access | Destroyed Striker 19123 | -1/Access | X0-1V1 turns hostiles against one another 19167 | -1/Access | Lost 7 allies 19192 | -1/Access | Destroyed 32 combat bots 19197 | -1/Access | Spotted Executioner 19197 | -1/Access | Spotted Striker 19206 | -1/Access | X0-1V1 sent allied H-81 Overseer (x2) 19208 | -1/Access | Spotted Executioner 19208 | -1/Access | Spotted Executioner 19209 | -1/Access | Allies destroyed Executioner 19211 | -1/Access | Allies destroyed Executioner 19217 | -1/Access | Spotted Striker 19217 | -1/Access | Spotted Executioner 19225 | -1/Access | Identified Terrabomb 19225 | -1/Access | Used Terrabomb 19238 | -1/Access | Used Terrabomb 19242 | -1/Access | Crushed by falling debris 19260 | -1/Access | Lost 5 allies 19261 | -1/Access | Lost 14 parts (1p1n7u5w) 19261 | -1/Access | X0-1V1 destroyed Energy Cycler 19261 | -1/Access | Energy Cycler disabled 19271 | -1/Access | Discovered new exit (range 5) 19273 | *** | Destroyed 0b10! Last Messages --------------- 19242_ Crushed by falling debris. 19247_ X0-1V1 imagines sitting ducks. Striker suddenly freezes. P-80 Master suddenly freezes. Striker suddenly freezes. 19250_ U-05 Engineer builds a Wall. 19252_ X0-1V1 enshrouds you in a swirling icy cloud. 19261_ X0-1V1: "Open sesame." 19261_ ALERT: Power surge detected, dispatching additional patrols. 19265_ U-05 Engineer builds a Wall. 19270_ Penetrated by Slug. 19270_ X0-1V1 stares into the ether. H-88 Terminator form shifts and blurs. 19271_ ALERT: Heavy assault forces dispatched. 19271_ The Access Shell folds into the floor. 19271_ EXIT=FOUND 19272_ Slug penetrates Reinforced Barrier. [Achievement: Force of Scrap] [Achievement: Payload Armed] [Achievement: Winner's Signature] Map ----- +----------------------------------------------------+ | ?????????????????????????????????????????????????? | | ?????????????????????????????????????????????????? | | ?????????????????????????????????????????????????? | | ?????????????????????????????????????????????????? | | ?????????????????????????????????????????????????? | | ?????????????????????????????????????????????????? | | ?????????????????????????????????????????????????? | | ?????????????????????????????????????????????????? | | ?????????????????????????????????????????????????? | | ???????????????????????????????????????????? ? | | ???????????????????###############?????????? | | ???????????????????? ??????????? | | ????????????????????h k???????????? | | ????????????????????# ""#???????????? | | ????????????????????# ""#???????????? | | ????????????????????# ""#???????????? !? | | ????????????????????# T#???????????? !? | | ????????????????????# ""#???????????? ? | | ????????????????????# ""#???????????? ?? | | ???????????????????## ""##??????????? ?? | | ???????????????????# #??###+###### #?? | | ????????????????????# #???# # #?? | | ????????????????????# #???# * # #?? | | ????????????????????# ##### # #?? | | ????????????????????# # ; ; #?? | | ????????????????????# @" ; ; + ## | | ????????????????????# "" ; ; ; + | | ????????????????????# ; ; ; #" | | ????????????????????# ; ; ; #" | | ????????????????????# hl; ; K; #" | | ????????????????????#""""""""""; ;;;;;;;;;; #" | | ??????????????????????????""??"" ; "" | | ?????????????????????????" "??"" ; "" | | ????????????????????#""""" """"" ;; "" | | ???????????????????## " ; "" | | ???????????????????#" " ; "" | | ??????????????????##" " # "T | | ??????????????????# " " ; "" | | ??????????????????# " " """""" | | ??????????????????# " " " | | ????????????????### " " " | | ?????????????#### # "" """" " | | ?????????????# """"""""""""""""""" " | | ##+#?????????# %"% """T""" " " | | #?????????# % """ """ " " | | #?????????# % !" " " | | #???????### + " " | | #?????### " % " " "" | | #????## " =%" " | | #???## " * *% " =%= " | +----------------------------------------------------+ Best States ------------- Heat Dissipation 197 Coolant Potential 120 Energy Generation 116 Energy Capacity 2115 Matter Stores 1000 Matter Capacity 1000 Sight Range 28 Robot Scan Range 18 Terrain Scan Range 16 Terrain Scan Density 10 ECM Strength 3 Jamming Range 16 Corruption Containment 12 Corruption Block 19 Armor Coverage 600 Resistance: KI 30 Resistance: TH 100 Resistance: EM 98 Weapon Cycling 30 Melee Speed Boost 40 Phase Shifting 20 Evasion (%) 73 Targeting Accuracy 24 Melee Accuracy 6 Core Analysis 12 Recoil Reduction 5 Particle Charging 30 Kinecelleration 40 Salvage Targeting 1 Item Schematics ----------------- Assault Drone Bay | -5/Zhirov | Free Exp. Heat Sink | -5/Zhirov | Free Exp. Optical Array | -5/Zhirov | Free Imp. Arc Thrower | -5/Zhirov | Free Com. Linear Accelerator | -2/Testing | Archive Centrium Heavy Treads | -2/Testing | Archive Hds. Centrium Leg | -2/Testing | Archive Plasma Lance | -2/Testing | Archive Exp. System Shield | -2/Testing | Archive Adv. Myomer Leg | -2/Testing | Archive Vortex Chain Reactor | -2/Section 7 | Archive Quantum Shading Machine | -2/Section 7 | Archive Ionic Axe | -2/Section 7 | Archive Prc. Matter Filter | -2/Section 7 | Archive Adv. Thermal Defense Suite | -2/Section 7 | Archive Exp. Shield Generator | -2/Section 7 | Archive Hds. Centrium Wheel | -2/Section 7 | Archive Mni. Smartbomb Launcher | -2/Section 7 | Archive Gui. Micro-nuke Launcher | -2/Section 7 | Archive Robot Schematics ------------------ G-67 Veteran | -2/Testing | Archive W-44 Eye | -2/Testing | Archive R-06 Scavenger | -2/Section 7 | Archive G-73 Enforcer | -2/Section 7 | Archive T-07 Excavator | -2/Section 7 | Archive D-83 Annihilator | -2/Section 7 | Archive R-10 Processor | -2/Section 7 | Archive Fabricated ------------ Nothing Repaired ---------- Nothing Studied --------- None Alien Tech Used ----------------- Integrated Reactor Transdimensional Reconstructor Integrated Dissipator Spacefold Activator Terrabomb Achievements -------------- Force of Scrap IP Theft Payload Armed Winner's Signature Challenges ------------ None Game ------ Seed TitaniumAssaultMapper Manual? 0 Play Time 05:00:11 Cumulative 250.8 hours Start 2026.06.24 @ 18:08:37 End 2026.06.25 @ 03:39:31 Sessions 8 Manual Loads 0 Difficulty Rogue Special Mode None Game No. 119 Rogue 119 Adventurer 0 Explorer 0 Win Type 3 Total 15 Types 11/1/1/1/0/0/0/0/0/1 Lore% 75 Gallery% 72 Achievement% 71 Wizard Run 0 Options --------- Layout 0 ASCII 0 Keyboard 1 Movement Arrows Keybinds 0 Fullscreen 2 Font 18/SmallcapsGlow Map View 76x50 Zoom Use 0% Tactical HUD 1 Map Filters NONE Filters NONE Steam 1 RUN: 6b7c0666-2e1f-4bb8-ba4e-ae7251a0c8e6